Workbook

Sheet 广州体育学院2020年第一批公开招聘事业编制拟聘人员名单
B1: 广州体育学院2022年第一批公开招聘事业编制拟聘人员名单
A2: 序号 | B2: 岗位代码 | C2: 岗位 | D2: 姓名 | E2: 毕业院校、专业 | F2: 学历学位 | G2: 笔试 40% | H2: 综合面试 60% | I2: 总成绩 | J2: 排名 | K2: 备注
A3: 1 | B3: A01 | C3: 游泳教研室教师 | D3: 韩济聪 | E3: 北京体育大学、运动训练 | F3: 研究生/硕士 | G3: 71.40 | H3: 81.75 | I3: 77.61 | J3: 1 | K3: 放弃
A4: 2 | D4: 李嘉慧 | E4: 华南师范大学、运动训练 | F4: 研究生/硕士 | G4: 68.60 | H4: 80.05 | I4: =G4*0.4+H4*0.6 -> 75.47 | J4: 2 | K4: 递补
A5: 3 | B5: A02 | C5: 田径教研室教师 | D5: 伍翔宇 | E5: 广州体育学院、体育教学 | F5: 研究生/硕士 | G5: 78.60 | H5: 82.90 | I5: =SUM(G5*0.4,H5*0.6) -> 81.18 | J5: 1
A6: 4 | D6: 张晋伟 | E6: 华侨大学、体育 | F6: 研究生/硕士 | G6: 73.85 | H6: 81.27 | I6: 78.30 | J6: 2
A7: 5 | B7: A03 | C7: 网球教研室教师 | D7: 唐好辰 | E7: 北京体育大学、运动训练 | F7: 研究生/硕士 | G7: 65.35 | H7: 92.30 | I7: 81.52 | J7: 1
A8: 6 | B8: A04 | C8: 小球教研室乒乓球教师 | D8: 李晓萱 | E8: 武汉体育学院、体育教学 | F8: 研究生/硕士 | G8: 70.15 | H8: 91.40 | I8: =G8*0.4+H8*0.6 -> 82.90 | J8: 1
A9: 7 | D9: 张智建 | E9: 华南理工大学、体育学 | F9: 研究生/硕士 | G9: 65.35 | H9: 88.30 | I9: =G9*0.4+H9*0.6 -> 79.12 | J9: 2
A10: 8 | B10: A05 | C10: 羽毛球教师 | D10: 叶子童 | E10: 广州体育学院、体育教学 | F10: 研究生/硕士 | G10: 69.55 | H10: 88.60 | I10: =G10*0.4+H10*0.6 -> 80.98 | J10: 1
A11: 9 | D11: 许崴 | E11: 华南理工大学、体育学 | F11: 研究生/硕士 | G11: 67.65 | H11: 88.00 | I11: =G11*0.4+H11*0.6 -> 79.86 | J11: 2
A12: 10 | B12: A07 | C12: 篮球教研室教师 | D12: 王禛 | E12: 广州体育学院、运动训练 | F12: 硕士研究生 | G12: 71.40 | H12: 94.00 | I12: =SUM(G12*0.4,H12*0.6) -> 84.96 | J12: 1
A13: 11 | B13: A08 | C13: 排球教研室教师 | D13: 柳馨 | E13: 北京体育大学、体育教学 | F13: 硕士研究生 | G13: 80.35 | H13: 91.20 | I13: =SUM(G13*0.4,H13*0.6) -> 86.86 | J13: 1
A14: 12 | B14: A09 | C14: 运动训练学教研室体能方向教师 | D14: 何家欣 | E14: 广州体育学院、体育教育训练学 | F14: 硕士研究生 | G14: 74.70 | H14: 91.50 | I14: =SUM(G14*0.4,H14*0.6) -> 84.78 | J14: 1
A15: 13 | B15: A12 | C15: 高尔夫教研室高尔夫教练 | D15: 高磊 | E15: 武汉体育学院、社会体育指导 | F15: 硕士研究生 | G15: 64.10 | H15: 90.40 | I15: =SUM(G15*0.4,H15*0.6) -> 79.88 | J15: 1
A16: 14 | B16: A13 | C16: 体育舞蹈教研室艺术体操教师 | D16: 宋亚超 | E16: 华南理工大学、体育学 | F16: 研究生/硕士 | G16: 67.75 | H16: 92.50 | I16: =G16*0.4+H16*0.6 -> 82.60 | J16: 1
A17: 15 | B17: A14 | C17: 体育舞蹈教研室体育舞蹈教师 | D17: 张旭 | E17: 广州体育学院、体育教育训练 | F17: 研究生/硕士 | G17: 80.10 | H17: 89.05 | I17: =G17*0.4+H17*0.6 -> 85.47 | J17: 1
A18: 16 | B18: A15 | C18: 运动舞蹈教研室健美操教师 | D18: 邓俊臣 | E18: 广州体育学院、体育教学 | F18: 研究生/硕士 | G18: 70.20 | H18: 93.75 | I18: =G18*0.4+H18*0.6 -> 84.33 | J18: 1
A19: 17 | B19: A16 | C19: 体操教研室体操教师 | D19: 黄文妍 | E19: 湖南师范大学、体育教育训练学 | F19: 研究生/硕士 | G19: 67.50 | H19: 84.30 | I19: 77.58 | J19: 1
A20: 18 | B20: A17 | C20: 民族传统体育教研室舞龙舞狮教师 | D20: 司雨航 | E20: 北京体育大学、体育教学 | F20: 研究生/硕士 | G20: 78.00 | H20: 89.00 | I20: =SUM(G20*0.4,H20*0.6) -> 84.60 | J20: 1
A21: 19 | B21: A18 | C21: 武术套路教研室教师 | D21: 赵蓓蓓 | E21: 台湾清华大学、运动科学 | F21: 研究生/硕士 | G21: 63.30 | H21: 93.05 | I21: =SUM(G21*0.4,H21*0.6) -> 81.15 | J21: 1
A22: 20 | B22: A19 | C22: 搏击运动教研室教师 | D22: 易平 | E22: 武汉体育学院、运动训练 | F22: 研究生/硕士 | G22: 80.55 | H22: 91.20 | I22: =SUM(G22*0.4,H22*0.6) -> 86.94 | J22: 1
A23: 21 | B23: A21 | C23: 足球 | D23: 于贇鑫 | E23: 广州体育学院、体育教育训练学 | F23: 研究生/硕士 | G23: 64.30 | H23: 92.4 | I23: 85.32 | J23: 1
A24: 22 | B24: B01 | C24: 基础教育学院计算机教研室实验员 | D24: 刘立婷 | E24: 广东工业大学计算机技术 | F24: 硕士研究生 | G24: 85.04 | H24: 85.00 | I24: =SUM(G24*0.4,H24*0.6) -> 85.02 | J24: 1
A25: 23 | B25: B02 | C25: 初或中级网络安全工程师 | D25: 龙胜 | E25: 中山大学计算机软件与理论 | F25: 硕士研究生 | G25: 86.30 | H25: 92.80 | I25: 90.20 | J25: 1
A26: 24 | B26: B03 | C26: 初或中级教育技术工程师 | D26: 胡卓妍 | E26: 华南师范大学职业技术教育 | F26: 硕士研究生 | G26: 87.18 | H26: 85.50 | I26: 86.17 | J26: 1
A27: 25 | B27: C01 | C27: 财务处会计 | D27: 张超楠 | E27: 湖南师范大学、会计学 | F27: 硕士研究生 | G27: 90.74 | H27: 87.6 | I27: 88.86 | J27: 1
A28: 26 | B28: C02 | C28: 采购员兼档案员 | D28: 蔡报坤 | E28: 广州大学、结构工程 | F28: 硕士研究生 | G28: 86.96 | H28: 71.6 | I28: 77.74 | J28: 1
A29: 27 | B29: C03 | C29: 辅导员 | D29: 王智聪 | E29: 华南师范大学、产业经济学 | F29: 硕士研究生 | G29: 85.26 | H29: 90.00 | I29: 88.10 | J29: 1 | K29: 放弃
A30: 28 | D30: 高杰松 | E30: 中山大学、核能与核技术工程 | F30: 硕士研究生 | G30: 91.18 | H30: 83.20 | I30: 86.39 | J30: 2
A31: 29 | D31: 何晓荣 | E31: 华南师范大学、金融 | F31: 硕士研究生 | G31: 87.40 | H31: 84.40 | I31: 85.60 | J31: 3
A32: 30 | D32: 赵一桐 | E32: 华南师范大学、应用心理硕士 | F32: 硕士研究生 | G32: 90.96 | H32: 80.00 | I32: 84.38 | J32: 4 | K32: 放弃
A33: 31 | D33: 温奕航 | E33: 云南师范大学、传播学 | F33: 硕士研究生 | G33: 84.00 | H33: 82.10 | I33: 82.86 | J33: 5 | K33: 放弃
A34: 32 | D34: 朱雅丽 | E34: 天津大学、应用化学 | F34: 硕士研究生 | G34: 88.66 | H34: 76.80 | I34: 81.54 | J34: 6 | K34: 递补
A35: 33 | D35: 戴宝茹 | E35: 澳门大学、教育行政 | F35: 硕士研究生 | G35: 84.44 | H35: 77.80 | I35: 80.46 | J35: 7 | K35: 递补
A36: 34 | D36: 杨啟世 | E36: 暨南大学、行政管理 | F36: 硕士研究生 | G36: 80.44 | H36: 80.00 | I36: 80.18 | J36: 8 | K36: 递补
